lending/lending_fUSD_20260102
["ID","MTS","AMOUNT","RATE_DAILY","PERIOD"]
[400315447,1767355877481,-662.51,0.00036254,2]
[400315448,1767355877490,-5000.0,0.00036262,2]
[400315449,1767355877500,-5000.0,0.00036276,2]
[400315450,1767355877510,-5000.0,0.0003631,2]
[400315451,1767355877519,-5000.0,0.00036311,2]
[400315452,1767355877529,-5000.0,0.00036332,2]
[400315453,1767355877539,-14303.93,0.00036338,2]
[400315454,1767355877549,-5000.0,0.00036341,2]
[400315455,1767355877559,-5000.0,0.00036358,2]
[400315456,1767355877569,-1000.0,0.00036364,10]
[400315457,1767355877578,-1000.0,0.00036364,10]
[400315458,1767355877588,-25000.0,0.00036434,2]
[400315459,1767355877597,-25000.0,0.00036468,2]
[400315460,1767355877607,-5000.0,0.00036473,2]
[400315461,1767355877616,-1000.0,0.00036501,10]
[400315462,1767355877626,-1000.0,0.00036501,10]
[400315463,1767355877637,-4495.11,0.00036514,2]
[400315464,1767355877647,-5000.0,0.00036521,2]
[400315465,1767355877657,-726.24,0.00036532,2]
[400315466,1767355877666,-5000.0,0.0003655,2]
[400315467,1767355877676,-267.46074303,0.00036552,2]
[400315468,1767355877686,-5000.0,0.0003659,2]
[400315469,1767355877695,-5000.0,0.00036607,2]
[400315470,1767355877705,-1000.0,0.00036638,10]
[400315471,1767355877714,-1000.0,0.00036638,10]
[400315472,1767355877723,-662.57,0.00036648,2]
[400315473,1767355877732,-1197.0,0.00036748,12]
[400315474,1767355877742,-5000.0,0.00036753,2]
[400315475,1767355877752,-2558.01,0.00036755,2]
[400315476,1767355877761,-5000.0,0.00036761,2]
[400315477,1767355877770,-1000.0,0.00036775,10]
[400315478,1767355877779,-1000.0,0.00036775,10]
[400315479,1767355877789,-25000.0,0.00036776,2]
[400315480,1767355877799,-5000.0,0.00036776,2]
[400315481,1767355877809,-981.12,0.00036796,2]
[400315482,1767355877819,-1603.2530722,0.000368,2]
[400315483,1767355877828,-1945.95400757,0.000368,2]
[400315484,1767355877838,-210.92639266,0.000368,120]
[400315485,1767355877847,-216.80181212,0.000368,120]
[400315486,1767355877857,-211.96337928,0.000368,120]
[400315487,1767355877866,-25000.0,0.00036854,2]
[400315488,1767355877875,-2500.0,0.00036879,2]
[400315489,1767355877885,-1895.9188351,0.00036888,60]
[400315490,1767355877895,-206.0,0.0003689,30]
[400315491,1767355877904,-5000.0,0.00036908,2]
[400315492,1767355877914,-5000.0,0.00036908,2]
[400315493,1767355877924,-14064.15369358,0.0003691,2]
[400315494,1767355877933,-1000.0,0.00036912,10]
[400315495,1767355877943,-1000.0,0.00036912,10]
[400315496,1767355877954,-5000.0,0.00036929,2]
[400315497,1767355877964,-25000.0,0.00036951,2]
[400315498,1767355877974,-160.6050594,0.00036963,2]
[400315499,1767355877986,-1674.33,0.00036975,2]
[400315500,1767355877995,-260.4103811,0.00036979,2]
[400315501,1767355878008,-151.0,0.00036984,2]
[400315502,1767355878018,-5000.0,0.00036984,2]
[400315503,1767355878027,-1000.0,0.00036986,120]
[400315504,1767355878037,-25000.0,0.0003699,2]
[400315505,1767355878049,-164.9018376,0.00037,2]
[400315506,1767355878059,-73053.42108931,0.00037,7]
[400315507,1767355878068,-570.95,0.00037,14]
[400315508,1767355878080,-750.0,0.00037,2]
[400315509,1767355878090,-12966.92,0.00037,2]
[400315510,1767355878099,-1000.0,0.00037049,10]
[400315511,1767355878108,-1000.0,0.00037049,10]
[400315512,1767355878118,-1000.0,0.00037049,10]
[400315513,1767355878128,-151.21,0.00037062,2]
[400315514,1767355878137,-342.06,0.00037062,2]
[400315515,1767355878146,-178.74,0.00037062,2]
[400315516,1767355878155,-938.29,0.00037062,2]
[400315517,1767355878165,-178.74,0.00037062,2]
[400315518,1767355878175,-465.64,0.00037062,2]
[400315519,1767355878185,-178.74,0.00037062,2]
[400315520,1767355878195,-1000.0,0.00037186,10]
[400315521,1767355878205,-1000.0,0.00037186,10]
[400315522,1767355878215,-1000.0,0.00037186,10]
[400315523,1767355878225,-174.34559107,0.00037212,120]
[400315524,1767355878235,-15950.0,0.00037224,120]
[400315525,1767355878245,-1197.0,0.00037282,13]
[400315526,1767355878255,-1000.0,0.00037323,10]
[400315527,1767355878264,-1000.0,0.00037323,10]
[400315528,1767355878273,-1000.0,0.00037323,10]
[400315529,1767355878283,-1000.0,0.0003746,10]
[400315530,1767355878292,-1000.0,0.0003746,10]
[400315531,1767355878302,-1000.0,0.0003746,10]
[400315532,1767355878311,-4312.05322983,0.0003759,2]
[400315533,1767355878321,-1197.0,0.00037816,13]
[400315534,1767355878330,-201.16008477,0.0003788,2]
[400315535,1767355878339,-210.92639266,0.000379,120]
[400315536,1767355878348,-172.36,0.00037918,60]
[400315537,1767355878358,-359.21018991,0.00038,4]
[400315538,1767355878367,-2582.75,0.00038,14]
[400315539,1767355878377,-335.44,0.00038,30]
[400315540,1767355878386,-250.0,0.00038,45]
[400315541,1767355878396,-160.0,0.00038,24]
[400315542,1767355878405,-160.0,0.00038,24]
[400315543,1767355878415,-160.0,0.00038,24]
[400315544,1767355878424,-160.0,0.00038,24]
[400315545,1767355878434,-160.0,0.00038,24]
[400315546,1767355878443,-160.0,0.00038,24]
[400315547,1767355878453,-160.0,0.00038,24]
[400315548,1767355878462,-160.0,0.00038,24]
[400315549,1767355878472,-160.0,0.00038,24]
[400315550,1767355878481,-160.0,0.00038,24]
[400315551,1767355878490,-160.0,0.00038,24]
[400315552,1767355878500,-207.0,0.00038,24]
[400315553,1767355878510,-12966.92,0.00038,2]
[400315554,1767355878519,-387.66807987,0.00038186,30]
[400315555,1767355878529,-590.44427107,0.00038186,30]
[400315556,1767355878539,-20000.0,0.00038224,120]
[400315557,1767355878548,-290.47436248,0.00038348,2]
[400315558,1767355878558,-1197.0,0.0003835,14]
[400315559,1767355878568,-151.0,0.00038353,2]
[400315560,1767355878577,-3483.5,0.00038356,120]
[400315561,1767355878587,-13764.45,0.00038356,10]
[400315562,1767355878597,-162.41794993,0.00038356,120]
[400315563,1767355878607,-151.0,0.00038356,120]
[400315564,1767355878617,-173.050862,0.00038356,120]
[400315565,1767355878627,-173.105207,0.00038356,120]
[400315566,1767355878636,-151.0,0.00038356,120]
[400315567,1767355878647,-152.446417,0.00038356,120]
[400315568,1767355878656,-151.0,0.00038356,60]
[400315569,1767355878666,-151.0,0.00038356,60]
[400315570,1767355878676,-151.0,0.00038356,60]
[400315571,1767355878686,-151.0,0.00038356,60]
[400315572,1767355878695,-151.0,0.00038356,60]
[400315573,1767355878706,-159.904672,0.00038356,60]
[400315574,1767355878715,-187.140802,0.00038356,120]
[400315575,1767355878725,-151.0,0.00038356,120]
[400315576,1767355878735,-151.0,0.00038356,120]
[400315577,1767355878744,-159.306613,0.00038356,120]
[400315578,1767355878754,-151.0,0.00038356,120]
[400315579,1767355878763,-151.0,0.00038356,120]
[400315580,1767355878773,-165.123671,0.00038356,120]
[400315581,1767355878783,-176.847926,0.00038356,120]
[400315582,1767355878793,-245.136518,0.00038356,120]
[400315583,1767355878803,-151.0,0.00038356,120]
[400315584,1767355878816,-168.734957,0.00038356,120]
[400315585,1767355878835,-158.266563,0.00038356,120]
[400315586,1767355878844,-151.0,0.00038356,120]
[400315587,1767355878854,-151.0,0.00038356,120]
[400315588,1767355878873,-164.52785,0.00038356,120]
[400315589,1767355878895,-151.0,0.00038356,7]
[400315590,1767355878905,-151.0,0.00038356,7]
[400315591,1767355878915,-151.0,0.00038356,7]
[400315592,1767355878933,-151.0,0.00038356,7]
[400315593,1767355878952,-151.0,0.00038356,7]
[400315594,1767355878962,-151.0,0.00038356,7]
[400315595,1767355878972,-151.0,0.00038356,7]
[400315596,1767355878981,-151.0,0.00038356,7]
[400315597,1767355878991,-151.0,0.00038356,7]
[400315598,1767355879003,-151.0,0.00038356,7]
[400315599,1767355879014,-176.484497,0.00038356,7]
[400315600,1767355879024,-160.149343,0.00038356,120]
[400315601,1767355879176,-352.577947,0.00038356,120]
[400315602,1767355879186,-352.577947,0.00038356,120]
[400315603,1767355879196,-352.577947,0.00038356,120]
[400315604,1767355879205,-352.577947,0.00038356,120]
[400315605,1767355879215,-352.577947,0.00038356,120]
[400315606,1767355879224,-352.577947,0.00038356,120]
[400315607,1767355879233,-352.577947,0.00038356,120]
[400315608,1767355879242,-352.577947,0.00038356,120]
[400315609,1767355879251,-352.577947,0.00038356,120]
[400315610,1767355879260,-352.577947,0.00038356,120]
[400315611,1767355879269,-352.577947,0.00038356,120]
[400315612,1767355879279,-352.577947,0.00038356,120]
[400315613,1767355879288,-352.577947,0.00038356,120]
[400315614,1767355879298,-352.577947,0.00038356,120]
[400315615,1767355879306,-352.577947,0.00038356,120]
[400315616,1767355879316,-352.577947,0.00038356,120]
[400315617,1767355879325,-352.577947,0.00038356,120]
[400315618,1767355879335,-352.577947,0.00038356,120]
[400315619,1767355879345,-352.577947,0.00038356,120]
[400315620,1767355879357,-352.577949,0.00038356,120]
[400315621,1767355879366,-151.0,0.00038356,120]
[400315622,1767355879375,-151.0,0.00038356,120]
[400315623,1767355879384,-151.0,0.00038356,120]
[400315624,1767355879394,-151.0,0.00038356,120]
[400315625,1767355879403,-151.0,0.00038356,120]
[400315626,1767355879414,-151.0,0.00038356,120]
[400315627,1767355879424,-151.0,0.00038356,120]
[400315628,1767355879434,-209.535329,0.00038356,120]
[400315629,1767355879443,-151.0,0.00038356,120]
[400315630,1767355879453,-151.0,0.00038356,120]
[400315631,1767355879462,-197.502244,0.00038356,120]
[400315632,1767355879473,-363.872094,0.00038356,120]
[400315633,1767355879483,-363.872094,0.00038356,120]
[400315634,1767355879492,-363.872094,0.00038356,120]
[400315635,1767355879502,-363.872094,0.00038356,120]
[400315636,1767355879513,-363.872094,0.00038356,120]
[400315637,1767355879522,-162.38709,0.00038356,120]
[400315638,1767355879531,-363.872094,0.00038356,120]
[400315639,1767355879540,-363.872094,0.00038356,120]
[400315640,1767355879549,-363.872094,0.00038356,120]
[400315641,1767355879559,-363.872094,0.00038356,120]
[400315642,1767355879568,-363.872094,0.00038356,120]
[400315643,1767355879578,-363.872094,0.00038356,120]
[400315644,1767355879587,-363.872094,0.00038356,120]
[400315645,1767355879597,-241.60116,0.00038356,120]
[400315646,1767355879606,-363.872094,0.00038356,120]
[400315647,1767355879615,-151.0,0.00038356,120]
[400315648,1767355879624,-363.872094,0.00038356,120]
[400315649,1767355879634,-151.0,0.00038356,120]
[400315650,1767355879643,-363.872094,0.00038356,120]
[400315651,1767355879653,-151.0,0.00038356,120]
[400315652,1767355879662,-363.872094,0.00038356,120]
[400315653,1767355879671,-151.0,0.00038356,120]
[400315654,1767355879681,-363.872094,0.00038356,120]
[400315655,1767355879690,-151.0,0.00038356,120]
[400315656,1767355879703,-363.872094,0.00038356,120]
[400315657,1767355879713,-363.872094,0.00038356,120]
[400315658,1767355879722,-151.0,0.00038356,120]
[400315659,1767355879732,-363.872097,0.00038356,120]
[400315660,1767355879742,-151.0,0.00038356,120]
[400315661,1767355879752,-271.6785,0.00038356,120]
[400315662,1767355879761,-158.330464,0.00038356,120]
[400315663,1767355879770,-151.0,0.00038356,120]
[400315664,1767355879780,-151.0,0.00038356,120]
[400315665,1767355879790,-151.0,0.00038356,120]
[400315666,1767355879799,-151.0,0.00038356,120]
[400315667,1767355879809,-151.0,0.00038356,120]
[400315668,1767355879819,-289.760749,0.00038356,120]
[400315669,1767355879828,-289.760749,0.00038356,120]
[400315670,1767355879837,-151.0,0.00038356,120]
[400315671,1767355879847,-289.760749,0.00038356,120]
[400315672,1767355879856,-151.0,0.00038356,120]
[400315673,1767355879865,-289.760749,0.00038356,120]
[400315674,1767355879874,-289.760749,0.00038356,120]
[400315675,1767355879884,-151.0,0.00038356,120]
[400315676,1767355879893,-151.0,0.00038356,120]
[400315677,1767355879902,-151.0,0.00038356,120]
[400315678,1767355879911,-151.0,0.00038356,120]
[400315679,1767355879921,-151.0,0.00038356,120]
[400315680,1767355879931,-289.760749,0.00038356,120]
[400315681,1767355879940,-151.0,0.00038356,120]
[400315682,1767355879950,-289.760749,0.00038356,120]
[400315683,1767355879959,-153.09083,0.00038356,120]
[400315684,1767355879969,-289.760749,0.00038356,120]
[400315685,1767355879978,-289.760749,0.00038356,120]
[400315686,1767355879988,-398.018229,0.00038356,120]
[400315687,1767355879997,-289.760749,0.00038356,120]
[400315688,1767355880011,-398.018229,0.00038356,120]
[400315689,1767355880020,-289.760749,0.00038356,120]
[400315690,1767355880030,-398.018229,0.00038356,120]
[400315691,1767355880039,-289.760749,0.00038356,120]
[400315692,1767355880049,-398.018229,0.00038356,120]
[400315693,1767355880059,-289.760749,0.00038356,120]
[400315694,1767355880068,-398.018229,0.00038356,120]
[400315695,1767355880079,-289.760749,0.00038356,120]
[400315696,1767355880088,-398.018229,0.00038356,120]
[400315697,1767355880098,-289.760749,0.00038356,120]
[400315698,1767355880108,-289.760749,0.00038356,120]
[400315699,1767355880117,-398.018229,0.00038356,120]
[400315700,1767355880127,-289.760749,0.00038356,120]
[400315701,1767355880136,-398.018229,0.00038356,120]
[400315702,1767355880145,-289.760749,0.00038356,120]
[400315703,1767355880155,-398.018229,0.00038356,120]
[400315704,1767355880164,-289.760749,0.00038356,120]
[400315705,1767355880174,-289.760742,0.00038356,120]
[400315706,1767355880184,-398.018229,0.00038356,120]
[400315707,1767355880194,-398.018229,0.00038356,120]
[400315708,1767355880203,-398.018229,0.00038356,120]
[400315709,1767355880212,-398.018229,0.00038356,120]
[400315710,1767355880222,-398.018229,0.00038356,120]
[400315711,1767355880231,-398.018229,0.00038356,120]
[400315712,1767355880240,-398.018229,0.00038356,120]
[400315713,1767355880249,-188.498563,0.00038356,120]
[400315714,1767355880259,-398.018229,0.00038356,120]
[400315715,1767355880268,-398.018229,0.00038356,120]
[400315716,1767355880277,-398.018229,0.00038356,120]
[400315717,1767355880291,-398.018223,0.00038356,120]
[400315718,1767355880300,-255.165556,0.00038356,120]
[400315719,1767355880310,-151.0,0.00038356,120]
[400315720,1767355880319,-151.0,0.00038356,120]
[400315721,1767355880329,-151.0,0.00038356,120]
[400315722,1767355880338,-151.0,0.00038356,120]
[400315723,1767355880348,-151.0,0.00038356,120]
[400315724,1767355880357,-151.0,0.00038356,120]
[400315725,1767355880366,-151.0,0.00038356,120]
[400315726,1767355880375,-151.0,0.00038356,120]
[400315727,1767355880385,-151.0,0.00038356,120]
[400315728,1767355880394,-171.474191,0.00038356,120]
[400315729,1767355880404,-151.0,0.00038356,120]
[400315730,1767355880413,-151.0,0.00038356,120]
[400315731,1767355880422,-151.0,0.00038356,120]
[400315732,1767355880432,-151.0,0.00038356,120]
[400315733,1767355880441,-151.0,0.00038356,120]
[400315734,1767355880450,-151.0,0.00038356,120]
[400315735,1767355880460,-155.540164,0.00038356,120]
[400315736,1767355880469,-151.0,0.00038356,120]
[400315737,1767355880479,-151.0,0.00038356,120]
[400315738,1767355880488,-171.413149,0.00038356,120]
[400315739,1767355880498,-151.0,0.00038356,45]
[400315740,1767355880507,-151.0,0.00038356,45]
[400315741,1767355880517,-151.0,0.00038356,45]
[400315742,1767355880527,-151.0,0.00038356,45]
[400315743,1767355880538,-171.326647,0.00038356,45]
[400315744,1767355880548,-277.346849,0.00038356,120]
[400315745,1767355880558,-151.0,0.00038356,120]
[400315746,1767355880568,-151.0,0.00038356,120]
[400315747,1767355880578,-178.701701,0.00038356,120]
[400315748,1767355880587,-179.235277,0.00038356,120]
[400315749,1767355880598,-151.0,0.00038356,120]
[400315750,1767355880608,-193.260656,0.00038356,120]
[400315751,1767355880619,-211.820423,0.00038356,120]
[400315752,1767355880629,-160.309408,0.00038356,120]
[400315753,1767355880639,-160.309408,0.00038356,120]
[400315754,1767355880646,-160.309408,0.00038356,120]
[400315755,1767355880654,-160.309408,0.00038356,120]
[400315756,1767355880662,-160.309408,0.00038356,120]
[400315757,1767355880673,-160.309408,0.00038356,120]
[400315758,1767355880681,-160.309408,0.00038356,120]
[400315759,1767355880689,-160.309408,0.00038356,120]
[400315760,1767355880699,-160.309408,0.00038356,120]
[400315761,1767355880708,-160.309408,0.00038356,120]
[400315762,1767355880718,-160.309408,0.00038356,120]
[400315763,1767355880727,-160.309408,0.00038356,120]
[400315764,1767355880737,-160.309408,0.00038356,120]
[400315765,1767355880747,-160.309408,0.00038356,120]
[400315766,1767355880756,-160.309408,0.00038356,120]
[400315767,1767355880766,-160.309408,0.00038356,120]
[400315768,1767355880775,-160.309408,0.00038356,120]
[400315769,1767355880785,-160.309408,0.00038356,120]
[400315770,1767355880794,-160.309408,0.00038356,120]
[400315771,1767355880804,-160.309405,0.00038356,120]
[400315772,1767355880814,-151.0,0.00038356,120]
[400315773,1767355880823,-151.0,0.00038356,120]
[400315774,1767355880833,-151.0,0.00038356,120]
[400315775,1767355880843,-151.0,0.00038356,120]
[400315776,1767355880853,-151.0,0.00038356,120]
[400315777,1767355880862,-151.0,0.00038356,120]
[400315778,1767355880872,-151.0,0.00038356,120]
[400315779,1767355880881,-151.0,0.00038356,120]
[400315780,1767355880891,-151.0,0.00038356,120]
[400315781,1767355880900,-151.0,0.00038356,120]
[400315782,1767355880910,-151.0,0.00038356,120]
[400315783,1767355880919,-151.0,0.00038356,120]
[400315784,1767355880928,-235.500758,0.00038356,120]
[400315785,1767355880938,-200.570043,0.00038356,120]
[400315786,1767355880947,-262.323454,0.00038356,120]
[400315787,1767355880957,-151.0,0.00038356,30]
[400315788,1767355880966,-151.0,0.00038356,120]
[400315789,1767355880975,-151.0,0.00038356,30]
[400315790,1767355880985,-180.280173,0.00038356,120]
[400315791,1767355880994,-151.0,0.00038356,30]
[400315792,1767355881005,-151.0,0.00038356,30]
[400315793,1767355881015,-151.0,0.00038356,30]
[400315794,1767355881025,-151.0,0.00038356,30]
[400315795,1767355881034,-151.0,0.00038356,30]
[400315796,1767355881044,-151.0,0.00038356,30]
[400315797,1767355881054,-151.0,0.00038356,30]
[400315798,1767355881064,-151.0,0.00038356,30]
[400315799,1767355881073,-151.0,0.00038356,30]
[400315800,1767355881083,-151.0,0.00038356,30]
[400315801,1767355881093,-238.385263,0.00038356,30]
[400315802,1767355881103,-151.0,0.00038356,120]
[400315803,1767355881113,-151.0,0.00038356,120]
[400315804,1767355881122,-151.0,0.00038356,120]
[400315805,1767355881132,-151.0,0.00038356,120]
[400315806,1767355881142,-151.0,0.00038356,120]
[400315807,1767355881152,-151.0,0.00038356,120]
[400315808,1767355881161,-151.0,0.00038356,120]
[400315809,1767355881171,-151.0,0.00038356,120]
[400315810,1767355881180,-151.0,0.00038356,120]
[400315811,1767355881190,-151.0,0.00038356,120]
[400315812,1767355881199,-151.0,0.00038356,120]
[400315813,1767355881210,-219.605043,0.00038356,120]
[400315814,1767355881219,-151.0,0.00038356,120]
[400315815,1767355881229,-151.0,0.00038356,120]
[400315816,1767355881243,-187.260407,0.00038356,120]
[400315817,1767355881253,-406.10449,0.00038356,120]
[400315818,1767355881262,-406.10449,0.00038356,120]
[400315819,1767355881272,-406.10449,0.00038356,120]
[400315820,1767355881282,-406.10449,0.00038356,120]
[400315821,1767355881291,-406.10449,0.00038356,120]
[400315822,1767355881300,-406.10449,0.00038356,120]
[400315823,1767355881310,-406.10449,0.00038356,120]
[400315824,1767355881319,-406.10449,0.00038356,120]
[400315825,1767355881329,-406.10449,0.00038356,120]
[400315826,1767355881339,-406.10449,0.00038356,120]
[400315827,1767355881349,-406.10449,0.00038356,120]
[400315828,1767355881359,-406.10449,0.00038356,120]
[400315829,1767355881368,-406.10449,0.00038356,120]
[400315830,1767355881378,-151.0,0.00038356,120]
[400315831,1767355881387,-406.10449,0.00038356,120]
[400315832,1767355881397,-151.0,0.00038356,120]
[400315833,1767355881407,-406.10449,0.00038356,120]
[400315834,1767355881417,-151.0,0.00038356,120]
[400315835,1767355881427,-406.10449,0.00038356,120]
[400315836,1767355881437,-151.0,0.00038356,120]
[400315837,1767355881447,-406.10449,0.00038356,120]
[400315838,1767355881456,-151.0,0.00038356,120]
[400315839,1767355881466,-167.630697,0.00038356,120]
[400315840,1767355881476,-406.10449,0.00038356,120]
[400315841,1767355881485,-151.0,0.00038356,120]
[400315842,1767355881496,-406.10449,0.00038356,120]
[400315843,1767355881506,-151.0,0.00038356,120]
[400315844,1767355881515,-406.104498,0.00038356,120]
[400315845,1767355881524,-151.0,0.00038356,120]
[400315846,1767355881534,-151.0,0.00038356,120]
[400315847,1767355881544,-151.0,0.00038356,120]
[400315848,1767355881553,-151.0,0.00038356,120]
[400315849,1767355881564,-151.0,0.00038356,120]
[400315850,1767355881573,-151.0,0.00038356,120]
[400315851,1767355881583,-151.0,0.00038356,120]
[400315852,1767355881593,-151.0,0.00038356,120]
[400315853,1767355881603,-151.0,0.00038356,120]
[400315854,1767355881612,-151.0,0.00038356,120]
[400315855,1767355881622,-151.0,0.00038356,120]
[400315856,1767355881632,-151.0,0.00038356,120]
[400315857,1767355881641,-151.0,0.00038356,120]
[400315858,1767355881651,-151.0,0.00038356,120]
[400315859,1767355881661,-151.0,0.00038356,120]
[400315860,1767355881673,-151.0,0.00038356,120]
[400315861,1767355881684,-151.0,0.00038356,120]
[400315862,1767355881695,-151.0,0.00038356,120]
[400315863,1767355881705,-151.0,0.00038356,120]
[400315864,1767355881714,-151.216171,0.00038356,120]
[400315865,1767355881724,-240.754572,0.00038356,120]
[400315866,1767355881734,-193.994905,0.00038356,120]
[400315867,1767355881744,-300.0,0.00038356,120]
[400315868,1767355881753,-151.0,0.00038356,120]
[400315869,1767355881763,-151.0,0.00038356,120]
[400315870,1767355881772,-168.01993,0.00038356,120]
[400315871,1767355881781,-151.0,0.00038356,120]
[400315872,1767355881791,-151.0,0.00038356,120]
[400315873,1767355881801,-151.0,0.00038356,120]
[400315874,1767355881810,-151.0,0.00038356,120]
[400315875,1767355881819,-151.0,0.00038356,120]
[400315876,1767355881828,-151.0,0.00038356,120]
[400315877,1767355881838,-151.0,0.00038356,120]
[400315878,1767355881848,-151.0,0.00038356,120]
[400315879,1767355881857,-151.0,0.00038356,120]
[400315880,1767355881866,-151.0,0.00038356,120]
[400315881,1767355881876,-151.0,0.00038356,120]
[400315882,1767355881885,-151.0,0.00038356,120]
[400315883,1767355881894,-151.0,0.00038356,120]
[400315884,1767355881904,-151.0,0.00038356,120]
[400315885,1767355881913,-151.0,0.00038356,120]
[400315886,1767355881923,-293.788325,0.00038356,120]
[400315887,1767355881933,-1000.0,0.00038356,5]
[400315888,1767355881942,-482.01,0.00038438,2]
[400315889,1767355881952,-482.01,0.00038438,2]
[400315890,1767355881962,-481.57,0.00038438,2]
[400315891,1767355881971,-150.0,0.00038466,7]
[400315892,1767355881981,-150.0,0.00038466,7]
[400315893,1767355881990,-150.0,0.00038466,7]
[400315894,1767355882000,-150.0,0.00038466,7]
[400315895,1767355882013,-150.0,0.00038466,7]
[400315896,1767355882022,-150.0,0.00038466,7]
[400315897,1767355882032,-150.0,0.00038466,7]
[400315898,1767355882042,-549.501,0.00038486,51]
[400315899,1767355882053,-164.11633489,0.000385,30]
[400315900,1767355882062,-2000.0,0.000386,2]
[400315901,1767355882072,-178.8,0.00038709,2]
[400315902,1767355882081,-335.68,0.00038709,2]
[400315903,1767355882091,-990.65865351,0.00038767,5]
[400315904,1767355882101,-2000.0,0.000388,14]
[400315905,1767355882110,-10451.0947548,0.000388,2]
[400315906,1767355882119,-15067.95607221,0.00038874,2]
[400315907,1767355882129,-1197.0,0.00038884,14]
[400315908,1767355882138,-446.2514,0.00038888,30]
[400315909,1767355882148,-318.45709884,0.000389,31]
[400315910,1767355882157,-335.69840843,0.000389,120]
[400315911,1767355882166,-5134.15,0.00038904,2]
[400315912,1767355882175,-206.0,0.0003891,30]
[400315913,1767355882185,-367.88190512,0.00038917,2]
[400315914,1767355882194,-368.34188078,0.00038917,2]
[400315915,1767355882204,-368.3418808,0.00038917,2]
[400315916,1767355882214,-368.3418808,0.00038917,2]
[400315917,1767355882223,-368.3418808,0.00038917,2]
[400315918,1767355882232,-368.3418808,0.00038917,2]
[400315919,1767355882242,-368.3418808,0.00038917,2]
[400315920,1767355882251,-368.3418808,0.00038917,2]
[400315921,1767355882260,-368.3418808,0.00038917,2]
[400315922,1767355882430,-368.3418808,0.00038917,2]
[400315923,1767355882441,-368.3418808,0.00038917,2]
[400315924,1767355882451,-368.3418808,0.00038917,2]
[400315925,1767355882461,-362.55296715,0.00038917,2]
[400315926,1767355882470,-370.65989593,0.00038917,2]
[400315927,1767355882480,-368.41142125,0.00038917,2]
[400315928,1767355882490,-368.27234035,0.00038917,2]
[400315929,1767355882499,-517.22480576,0.00038917,2]
[400315930,1767355882509,-368.3418808,0.00038917,2]
[400315931,1767355882518,-368.3418808,0.00038917,2]
[400315932,1767355882527,-368.3418808,0.00038917,2]
[400315933,1767355882537,-377.39060315,0.00038917,2]
[400315934,1767355882546,-368.3418808,0.00038917,2]
[400315935,1767355882556,-322.36010897,0.00038917,2]
[400315936,1767355882565,-300.48451967,0.00038917,2]
[400315937,1767355882575,-300.0,0.00038917,2]
[400315938,1767355882584,-300.0,0.00038917,2]
[400315939,1767355882594,-302.82320755,0.00038917,2]
[400315940,1767355882603,-300.0,0.00038917,2]
[400315941,1767355882613,-302.63335237,0.00038917,2]
[400315942,1767355882623,-300.0,0.00038917,2]
[400315943,1767355882632,-300.0,0.00038917,2]
[400315944,1767355882642,-615.75168047,0.00038917,2]
[400315945,1767355882651,-315.07849664,0.00038917,2]
[400315946,1767355882660,-300.0,0.00038917,2]